Department Family,Entity,Date,Expense Type,Expense area,Supplier,Transaction Number,Amount in Sterling �s incl VAT ,Supplier VAT Registration number
NHS,Glos Hospitals NHS Foundation Trust,07/03/2023,Finished processed goods,Inventories,Alliance Healthcare,000479-128,"26,770.08", 
NHS,Glos Hospitals NHS Foundation Trust,07/03/2023,Finished processed goods,Inventories,Bristol Myers Squibb Pharmaceuticals Limited,000480-122,"26,535.55", 
NHS,Glos Hospitals NHS Foundation Trust,07/03/2023,Finished processed goods,Inventories,Roche Products Limited,000480-126,"75,443.71", 
NHS,Glos Hospitals NHS Foundation Trust,07/03/2023,Finished processed goods,Inventories,Roche Products Limited,000480-127,"32,760.00", 
NHS,Glos Hospitals NHS Foundation Trust,07/03/2023,Finished processed goods,Inventories,Aah Pharmaceuticals Limited,000480-25,"52,370.94", 
NHS,Glos Hospitals NHS Foundation Trust,07/03/2023,Finished processed goods,Inventories,Alloga UK Limited,000480-271,"45,000.00", 
NHS,Glos Hospitals NHS Foundation Trust,07/03/2023,Finished processed goods,Inventories,Alloga UK Limited,000480-272,"27,120.00", 
NHS,Glos Hospitals NHS Foundation Trust,07/03/2023,Finished processed goods,Inventories,Qualasept Ltd t/a Bath ASU,000480-281,"37,217.76", 
NHS,Glos Hospitals NHS Foundation Trust,07/03/2023,Finished processed goods,Inventories,Qualasept Ltd t/a Bath ASU,000480-283,"33,460.70", 
NHS,Glos Hospitals NHS Foundation Trust,07/03/2023,Finished processed goods,Inventories,Qualasept Ltd t/a Bath ASU,000480-286,"34,646.16", 
NHS,Glos Hospitals NHS Foundation Trust,07/03/2023,Finished processed goods,Inventories,Qualasept Ltd t/a Bath ASU,000480-287,"54,867.84", 
NHS,Glos Hospitals NHS Foundation Trust,07/03/2023,Finished processed goods,Inventories,Qualasept Ltd t/a Bath ASU,000480-290,"51,923.51", 
NHS,Glos Hospitals NHS Foundation Trust,07/03/2023,Finished processed goods,Inventories,Octapharma Limited,000482-373,"44,505.00", 
NHS,Glos Hospitals NHS Foundation Trust,07/03/2023,Finished processed goods,Inventories,Roche Products Limited,000482-56,"109,200.00", 
NHS,Glos Hospitals NHS Foundation Trust,14/03/2023,Finished processed goods,Inventories,Bayer,000483-203,"45,622.80", 
NHS,Glos Hospitals NHS Foundation Trust,14/03/2023,Finished processed goods,Inventories,Roche Products Limited,000485-119,"32,760.00", 
NHS,Glos Hospitals NHS Foundation Trust,14/03/2023,Finished processed goods,Inventories,Bayer,000486-295,"49,272.62", 
NHS,Glos Hospitals NHS Foundation Trust,14/03/2023,Finished processed goods,Inventories,Roche Products Limited,000486-300,"35,598.95", 
NHS,Glos Hospitals NHS Foundation Trust,14/03/2023,Finished processed goods,Inventories,Qualasept Ltd t/a Bath ASU,000486-417,"27,886.32", 
NHS,Glos Hospitals NHS Foundation Trust,14/03/2023,Finished processed goods,Inventories,Qualasept Ltd t/a Bath ASU,000486-419,"34,528.68", 
NHS,Glos Hospitals NHS Foundation Trust,21/03/2023,Finished processed goods,Inventories,Aah Pharmaceuticals Limited,000489-116,"35,367.19", 
NHS,Glos Hospitals NHS Foundation Trust,21/03/2023,Finished processed goods,Inventories,Roche Products Limited,000490-338,"83,874.91", 
NHS,Glos Hospitals NHS Foundation Trust,21/03/2023,Finished processed goods,Inventories,Alliance Healthcare,000490-428,"35,079.10", 
NHS,Glos Hospitals NHS Foundation Trust,21/03/2023,Finished processed goods,Inventories,Alloga UK Limited,000490-527,"45,000.00", 
NHS,Glos Hospitals NHS Foundation Trust,21/03/2023,Finished processed goods,Inventories,Qualasept Ltd t/a Bath ASU,000490-535,"36,249.10", 
NHS,Glos Hospitals NHS Foundation Trust,21/03/2023,Finished processed goods,Inventories,Qualasept Ltd t/a Bath ASU,000490-537,"36,975.54", 
NHS,Glos Hospitals NHS Foundation Trust,21/03/2023,Finished processed goods,Inventories,Qualasept Ltd t/a Bath ASU,000490-538,"33,460.70", 
NHS,Glos Hospitals NHS Foundation Trust,21/03/2023,Finished processed goods,Inventories,Bayer,000492-1,"45,622.80", 
NHS,Glos Hospitals NHS Foundation Trust,21/03/2023,Finished processed goods,Inventories,Bayer,000492-2,"29,198.59", 
NHS,Glos Hospitals NHS Foundation Trust,21/03/2023,Finished processed goods,Inventories,Bayer,000492-3,"-29,198.59", 
NHS,Glos Hospitals NHS Foundation Trust,28/03/2023,Finished processed goods,Inventories,Bayer,000493-2,"45,622.80", 
NHS,Glos Hospitals NHS Foundation Trust,28/03/2023,Finished processed goods,Inventories,Bayer,000493-50,"49,272.62", 
NHS,Glos Hospitals NHS Foundation Trust,28/03/2023,Finished processed goods,Inventories,Roche Products Limited,000493-52,"73,320.00", 
NHS,Glos Hospitals NHS Foundation Trust,28/03/2023,Finished processed goods,Inventories,Roche Products Limited,000493-53,"27,647.82", 
NHS,Glos Hospitals NHS Foundation Trust,28/03/2023,Finished processed goods,Inventories,Alliance Healthcare,000494-388,"26,638.80", 
NHS,Glos Hospitals NHS Foundation Trust,28/03/2023,Finished processed goods,Inventories,Bristol Myers Squibb Pharmaceuticals Limited,000496-133,"27,531.00", 
NHS,Glos Hospitals NHS Foundation Trust,28/03/2023,Finished processed goods,Inventories,Roche Products Limited,000496-137,"32,760.00", 
NHS,Glos Hospitals NHS Foundation Trust,28/03/2023,Finished processed goods,Inventories,Roche Products Limited,000496-138,"27,909.60", 
NHS,Glos Hospitals NHS Foundation Trust,28/03/2023,Finished processed goods,Inventories,Roche Products Limited,000496-139,"67,956.00", 
NHS,Glos Hospitals NHS Foundation Trust,28/03/2023,Finished processed goods,Inventories,Roche Products Limited,000496-142,"32,760.00", 
NHS,Glos Hospitals NHS Foundation Trust,28/03/2023,Finished processed goods,Inventories,Aah Pharmaceuticals Limited,000496-150,"-130,012.08", 
NHS,Glos Hospitals NHS Foundation Trust,28/03/2023,Finished processed goods,Inventories,Aah Pharmaceuticals Limited,000496-169,"132,375.94", 
NHS,Glos Hospitals NHS Foundation Trust,28/03/2023,Finished processed goods,Inventories,Alloga UK Limited,000496-310,"27,131.04", 
NHS,Glos Hospitals NHS Foundation Trust,28/03/2023,Finished processed goods,Inventories,Alloga UK Limited,000496-314,"45,000.00", 
NHS,Glos Hospitals NHS Foundation Trust,28/03/2023,Finished processed goods,Inventories,Alloga UK Limited,000496-318,"35,127.11", 
NHS,Glos Hospitals NHS Foundation Trust,28/03/2023,Finished processed goods,Inventories,Qualasept Ltd t/a Bath ASU,000496-335,"34,528.68", 
NHS,Glos Hospitals NHS Foundation Trust,28/03/2023,Finished processed goods,Inventories,Qualasept Ltd t/a Bath ASU,000496-337,"30,672.31", 
NHS,Glos Hospitals NHS Foundation Trust,28/03/2023,Finished processed goods,Inventories,Qualasept Ltd t/a Bath ASU,000496-338,"34,528.68", 
NHS,Glos Hospitals NHS Foundation Trust,28/03/2023,Finished processed goods,Inventories,Bristol Myers Squibb Pharmaceuticals Limited,000497-101,"33,264.00", 
NHS,Glos Hospitals NHS Foundation Trust,28/03/2023,Finished processed goods,Inventories,Aah Pharmaceuticals Limited,000497-414,"33,721.22", 
NHS,Glos Hospitals NHS Foundation Trust,28/03/2023,Finished processed goods,Inventories,Bayer,000498-22,"45,622.80", 
NHS,Glos Hospitals NHS Foundation Trust,28/03/2023,Finished processed goods,Inventories,Janssen Cilag Limited,000498-227,"88,231.68", 
NHS,Glos Hospitals NHS Foundation Trust,28/03/2023,Finished processed goods,Inventories,Janssen Cilag Limited,000498-229,"83,486.40", 
NHS,Glos Hospitals NHS Foundation Trust,28/03/2023,Finished processed goods,Inventories,Janssen Cilag Limited,000498-230,"88,231.68", 
NHS,Glos Hospitals NHS Foundation Trust,28/03/2023,Finished processed goods,Inventories,Janssen Cilag Limited,000498-232,"83,462.40", 
NHS,Glos Hospitals NHS Foundation Trust,14/03/2023,X-Ray Equipment : Maintenance,Nuclear Medicine,Supply Chain Coordination Ltd - Maint. (201),946835,"69,211.44", 
NHS,Glos Hospitals NHS Foundation Trust,14/03/2023,X-Ray Equipment : Maintenance,Radiography,Supply Chain Coordination Ltd - Maint. (201),949604,"28,080.00", 
NHS,Glos Hospitals NHS Foundation Trust,07/03/2023,Purchase Computers/Systems,Capital Project Control,TET Limited t/a Trans Euopean Technology,950111,"123,600.00", 
NHS,Glos Hospitals NHS Foundation Trust,14/03/2023,Sal Sacrifice Car Scheme,Pay Deductions,Tusker Direct,951304,"74,206.26", 
NHS,Glos Hospitals NHS Foundation Trust,07/03/2023,Fresh Blood & Plasma Products,Blood Products,HA73961 NHS Blood & Transplant,953809,"99,429.08", 
NHS,Glos Hospitals NHS Foundation Trust,07/03/2023,Fresh Blood & Plasma Products,Blood Products,HA73961 NHS Blood & Transplant,953810,"45,402.19", 
NHS,Glos Hospitals NHS Foundation Trust,28/03/2023,IT software,Capital Project Control,Siemens Healthcare Limited,954429,"60,662.40", 
NHS,Glos Hospitals NHS Foundation Trust,07/03/2023,Non - Healthcare - NHS Trusts,Hereford Clinic Rental,HA95059 Wye Valley NHS Trust,954791,"155,586.00", 
NHS,Glos Hospitals NHS Foundation Trust,14/03/2023,Computer Maintenance,Clinical Systems,Insight Direct (UK) Limited,954854,"66,000.00", 
NHS,Glos Hospitals NHS Foundation Trust,14/03/2023,Purchase Computers/Systems,Capital Project Control,XMA Limited,955091,"47,310.86", 
NHS,Glos Hospitals NHS Foundation Trust,07/03/2023,Medical & Surgical Equipment : General,Theatre Admin GRH,CMR Surgical Limited,955106,"61,350.00", 
NHS,Glos Hospitals NHS Foundation Trust,07/03/2023,Laboratory Reagents,Haematology / Immunology Lab trustwide - NONPAY,Beckman Coulter United Kingdom Limited,955114,"-169,065.97", 
NHS,Glos Hospitals NHS Foundation Trust,07/03/2023,Laboratory Reagents,Haematology / Immunology Lab trustwide - NONPAY,Beckman Coulter United Kingdom Limited,955116,"-72,212.86", 
NHS,Glos Hospitals NHS Foundation Trust,07/03/2023,Laboratory Reagents,Haematology / Immunology Lab trustwide - NONPAY,Beckman Coulter United Kingdom Limited,955207,"169,065.97", 
NHS,Glos Hospitals NHS Foundation Trust,07/03/2023,Contract : Other External,UC & Dividend,NHS Gloucestershire Managed Services,955284,"69,955.70", 
NHS,Glos Hospitals NHS Foundation Trust,07/03/2023,Computer Software / License  Fees,Smartcare,InterSystems,955417,"61,668.53", 
NHS,Glos Hospitals NHS Foundation Trust,07/03/2023,Laboratory Reagents,Haematology / Immunology Lab trustwide - NONPAY,Beckman Coulter United Kingdom Limited,955469,"70,342.01", 
NHS,Glos Hospitals NHS Foundation Trust,07/03/2023,Laboratory Reagents,Haematology / Immunology Lab trustwide - NONPAY,Beckman Coulter United Kingdom Limited,955470,"169,065.97", 
NHS,Glos Hospitals NHS Foundation Trust,28/03/2023,Purchase Computers/Systems,Capital Project Control,XMA Limited,955509,"70,739.52", 
NHS,Glos Hospitals NHS Foundation Trust,28/03/2023,Purchase Computers/Systems,Capital Project Control,XMA Limited,955510,"58,242.05", 
NHS,Glos Hospitals NHS Foundation Trust,07/03/2023,Prescribing Control,Payables - Manual,HA79125 NHSBSA,955772,"110,366.48", 
NHS,Glos Hospitals NHS Foundation Trust,07/03/2023,Regular recharges,Scheduled Recharges from NPX,Gloucestershire Health and Care NHS FT Pr GCS,955853,"28,655.40", 
NHS,Glos Hospitals NHS Foundation Trust,07/03/2023,Computer Software / License  Fees,IT Contracts Shared Service,TOPdesk UK Limited,955890,"49,658.40", 
NHS,Glos Hospitals NHS Foundation Trust,07/03/2023,Purchase Computers/Systems,Capital Project Control,Insight Direct (UK) Limited,955902,"93,160.85", 
NHS,Glos Hospitals NHS Foundation Trust,07/03/2023,Colour Connection,Payables - Manual,Colour Connection,955914,"38,492.94", 
NHS,Glos Hospitals NHS Foundation Trust,07/03/2023,Contractual Clinical Services,Urology Specialty,Shire Surgical Limited,955935,"57,000.00", 
NHS,Glos Hospitals NHS Foundation Trust,28/03/2023,Purchase Computers/Systems,Capital Project Control,XMA Limited,955998,"27,782.40", 
NHS,Glos Hospitals NHS Foundation Trust,07/03/2023,Building - External Contracts,Capital Project Control,Kier Infrastructure & Overseas Limited,956035,"1,759,849.19", 
NHS,Glos Hospitals NHS Foundation Trust,14/03/2023,Lease Rents,Shared Services-Admin,Regina Realty Limited,956048,"60,000.00", 
NHS,Glos Hospitals NHS Foundation Trust,14/03/2023,Contractual Clinical Services,Urology Specialty,Shire Surgical Limited,956154,"26,900.00", 
NHS,Glos Hospitals NHS Foundation Trust,21/03/2023,Laboratory External Tests,Haematology / Immunology Lab trustwide - NONPAY,HA91729 North Bristol NHS Trust,956186,"111,700.78", 
NHS,Glos Hospitals NHS Foundation Trust,21/03/2023,Laboratory External Tests,Haematology / Immunology Lab trustwide - NONPAY,HA91729 North Bristol NHS Trust,956187,"89,142.11", 
NHS,Glos Hospitals NHS Foundation Trust,21/03/2023,Laboratory External Tests,Haematology / Immunology Lab trustwide - NONPAY,HA91729 North Bristol NHS Trust,956188,"79,833.05", 
NHS,Glos Hospitals NHS Foundation Trust,28/03/2023,Purchase Computers/Systems,Capital Project Control,XMA Limited,956239,"37,084.80", 
NHS,Glos Hospitals NHS Foundation Trust,14/03/2023,Computer Maintenance,IT Contracts Shared Service,Stanley Security Solutions,956246,"44,952.77", 
NHS,Glos Hospitals NHS Foundation Trust,14/03/2023,Interpreting services,Patient Experience Improvement,DA Languages,956267,"25,857.04", 
NHS,Glos Hospitals NHS Foundation Trust,14/03/2023,Lease Rents,Houses&Residences-CGH,Sovereign Housing Association Limited,956271,"40,772.25", 
NHS,Glos Hospitals NHS Foundation Trust,14/03/2023,Consultant - new contract,Consultants - Obs & Gynae & Gynae Onc,HA90825 Uni Hosp Bristol Weston Found Trust,956300,"33,186.00", 
NHS,Glos Hospitals NHS Foundation Trust,14/03/2023,Building  Contracts,Vascular Specialty,exi Project Management South Limited,956558,"48,375.60", 
NHS,Glos Hospitals NHS Foundation Trust,14/03/2023,Computer Maintenance,Computing - CGH HQ,Hyland UK Operations Limited,956789,"60,260.17", 
NHS,Glos Hospitals NHS Foundation Trust,28/03/2023,Purchase Computers/Systems,Capital Project Control,XMA Limited,957275,"32,977.82", 
NHS,Glos Hospitals NHS Foundation Trust,14/03/2023,NHS Logistics control,Payables - Manual,Supply Chain Coordination Ltd - Consumables,957417,"57,418.47", 
NHS,Glos Hospitals NHS Foundation Trust,14/03/2023,Sal Sacrifice Car Scheme,Pay Deductions,Tusker Direct,957421,"71,964.07", 
NHS,Glos Hospitals NHS Foundation Trust,14/03/2023,Allocate,Payables - Manual,GDN Recruitment t/a National Locums,957425,"25,325.36", 
NHS,Glos Hospitals NHS Foundation Trust,14/03/2023,External Contracts : Other,Radiography Consultants,Everlight Radiology,957520,"94,375.75", 
NHS,Glos Hospitals NHS Foundation Trust,14/03/2023,External Contracts : Other,Radiography Consultants,Everlight Radiology,957521,"29,907.00", 
NHS,Glos Hospitals NHS Foundation Trust,17/03/2023,Contract : Other External,UC & Dividend,NHS Gloucestershire Managed Services,957548,"5,841,775.56", 
NHS,Glos Hospitals NHS Foundation Trust,17/03/2023,Commercial Sector,Theatre Admin GRH,Genmed.me Limited,957619,"1,568,296.55", 
NHS,Glos Hospitals NHS Foundation Trust,21/03/2023,Regular recharges,Scheduled Recharges from NPX,Gloucestershire Health and Care NHS FT Pr GCS,957741,"92,307.70", 
NHS,Glos Hospitals NHS Foundation Trust,21/03/2023,Regular recharges,Scheduled Recharges from NPX,Gloucestershire Health and Care NHS FT Pr GCS,957743,"155,716.60", 
NHS,Glos Hospitals NHS Foundation Trust,21/03/2023,External Contracts : Other,Radiography,Cobalt Health,957746,"70,370.00", 
NHS,Glos Hospitals NHS Foundation Trust,21/03/2023,Computer Software / License  Fees,IT Contracts Shared Service,Computacenter (UK) Ltd,957747,"480,000.00", 
NHS,Glos Hospitals NHS Foundation Trust,28/03/2023,Computer Maintenance,Computing - CGH HQ,Daisy Communications Limited,957997,"-30,656.55", 
NHS,Glos Hospitals NHS Foundation Trust,28/03/2023,Telephone Rental,IT Contracts Shared Service,Daisy Communications Limited,958005,"40,024.94", 
NHS,Glos Hospitals NHS Foundation Trust,21/03/2023,Contractual Clinical Services,Cardiology Laboratory,AGITO Medical A/S,958027,"31,970.00", 
NHS,Glos Hospitals NHS Foundation Trust,21/03/2023,Contractual Clinical Services,Cardiology Laboratory,AGITO Medical A/S,958028,"27,800.00", 
NHS,Glos Hospitals NHS Foundation Trust,21/03/2023,Laboratory External Tests,Haematology / Immunology Lab trustwide - NONPAY,HA91729 North Bristol NHS Trust,958046,"-34,699.02", 
NHS,Glos Hospitals NHS Foundation Trust,21/03/2023,Medical & Surgical Equipment : General,Cardiology Laboratory,Abbott Medical UK Limited,958054,"27,600.00", 
NHS,Glos Hospitals NHS Foundation Trust,17/03/2023,Commercial Sector,Theatre Admin GRH,Genmed.me Limited,958123,"557,385.91", 
NHS,Glos Hospitals NHS Foundation Trust,17/03/2023,Barclay Card,Payables - Manual,Barclaycard Commercial,958190,"132,573.04", 
NHS,Glos Hospitals NHS Foundation Trust,21/03/2023,NHS Logistics control,Payables - Manual,Supply Chain Coordination Ltd - Consumables,958263,"269,895.13", 
NHS,Glos Hospitals NHS Foundation Trust,21/03/2023,Consultant - new contract,Consultants - Obs & Gynae & Gynae Onc,HA90825 Uni Hosp Bristol Weston Found Trust,958504,"105,010.00", 
NHS,Glos Hospitals NHS Foundation Trust,21/03/2023,External Consultancy Fees,Trustwide NR,KPMG LLP,958508,"61,800.00", 
NHS,Glos Hospitals NHS Foundation Trust,21/03/2023,Prescribing Control,Payables - Manual,HA79125 NHSBSA,958582,"111,108.44", 
NHS,Glos Hospitals NHS Foundation Trust,28/03/2023,Computer Maintenance,Computing - CGH HQ,Daisy Communications Limited,958639,"-41,610.25", 
NHS,Glos Hospitals NHS Foundation Trust,21/03/2023,NHS Logistics control,Payables - Manual,Supply Chain Coordination Ltd - Consumables,958649,"73,801.83", 
NHS,Glos Hospitals NHS Foundation Trust,21/03/2023,Non - Healthcare NHS Foundation Trust,Staff Health & Wellbeing,Gloucestershire Health and Care NHS FT Pr GCS,958651,"115,250.00", 
NHS,Glos Hospitals NHS Foundation Trust,21/03/2023,External Contracts : Other,Radiography Consultants,Hexarad Group Limited,958843,"31,140.00", 
NHS,Glos Hospitals NHS Foundation Trust,21/03/2023,Contract : Other External,SubCo Stores Recharges,NHS Gloucestershire Managed Services,958845,"741,032.40", 
NHS,Glos Hospitals NHS Foundation Trust,21/03/2023,Non - Healthcare NHS Foundation Trust,Staff Health & Wellbeing,Gloucestershire Health and Care NHS FT Pr GCS,958859,"230,500.00", 
NHS,Glos Hospitals NHS Foundation Trust,21/03/2023,Pay - Agency Prof & Technical,Capital Project Control,Allscripts Healthcare (IT) UK Limited,958871,"240,000.00", 
NHS,Glos Hospitals NHS Foundation Trust,21/03/2023,Computer Network Costs,Network Infrastructure,BT Global Services,958877,"43,810.32", 
NHS,Glos Hospitals NHS Foundation Trust,21/03/2023,Advertising & Staff Recruitment,Overseas Recruitment,ID Medical Group Limited,958927,"84,000.00", 
NHS,Glos Hospitals NHS Foundation Trust,21/03/2023,Advertising & Staff Recruitment,Overseas Recruitment,ID Medical Group Limited,958941,"35,337.31", 
NHS,Glos Hospitals NHS Foundation Trust,21/03/2023,Pay - Agency Prof & Technical,Capital Project Control,Allscripts Healthcare (IT) UK Limited,958948,"240,000.00", 
NHS,Glos Hospitals NHS Foundation Trust,28/03/2023,Contractual Clinical Services,Renal Dialysis,B Braun Avitum UK Limited,958951,"132,030.00", 
NHS,Glos Hospitals NHS Foundation Trust,30/03/2023,Laboratory External Tests,Haematology / Immunology Lab trustwide - NONPAY,HA91729 North Bristol NHS Trust,959289,"-33,663.38", 
NHS,Glos Hospitals NHS Foundation Trust,30/03/2023,Laboratory External Tests,Haematology / Immunology Lab trustwide - NONPAY,HA91729 North Bristol NHS Trust,959290,"100,783.12", 
NHS,Glos Hospitals NHS Foundation Trust,28/03/2023,Computer Software / License  Fees,Computing - CGH HQ,Daisy Communications Limited,959503,"79,200.00", 
NHS,Glos Hospitals NHS Foundation Trust,28/03/2023,Commercial Sector,Theatre Admin GRH,Genmed.me Limited,959960,"1,568,296.45", 
NHS,Glos Hospitals NHS Foundation Trust,28/03/2023,External Contracts : Other,Radiography Consultants,Everlight Radiology,959963,"95,821.25", 
NHS,Glos Hospitals NHS Foundation Trust,28/03/2023,External Contracts : Other,Radiography Consultants,Everlight Radiology,959964,"43,868.25", 
NHS,Glos Hospitals NHS Foundation Trust,28/03/2023,Medical & Surgical Equipment : Disposable,CAPD Renal,Baxter Healthcare Limited,959966,"31,087.16", 
NHS,Glos Hospitals NHS Foundation Trust,28/03/2023,Medical & Surgical Equipment : Disposable,CAPD Renal,Baxter Healthcare Limited,959969,"33,319.11", 
NHS,Glos Hospitals NHS Foundation Trust,28/03/2023,Medical & Surgical Equipment : Disposable,CAPD Renal,Baxter Healthcare Limited,959973,"40,894.71", 
NHS,Glos Hospitals NHS Foundation Trust,28/03/2023,Purchase Computers/Systems,Capital Project Control,XMA Limited,959987,"89,309.95", 
NHS,Glos Hospitals NHS Foundation Trust,31/03/2023,Computer Software / License  Fees,EPR Project Revenue,Allscripts Healthcare (IT) UK Limited,960049,"388,420.80", 
NHS,Glos Hospitals NHS Foundation Trust,31/03/2023,Computer Software / License  Fees,EPR Project Revenue,Allscripts Healthcare (IT) UK Limited,960050,"456,087.59", 
NHS,Glos Hospitals NHS Foundation Trust,28/03/2023,Engineering - External Contracts,Capital Project Control,Insight Direct (UK) Limited,960064,"69,360.00", 
NHS,Glos Hospitals NHS Foundation Trust,28/03/2023,NHS Logistics control,Payables - Manual,Supply Chain Coordination Ltd - Consumables,960112,"119,543.58", 
NHS,Glos Hospitals NHS Foundation Trust,28/03/2023,Building - External Contracts,Capital Project Control,Kier Infrastructure & Overseas Limited,960166,"2,018,858.38", 
NHS,Glos Hospitals NHS Foundation Trust,28/03/2023,External Contracts : Other,Radiography,Cobalt Health,960450,"26,809.55", 
NHS,Glos Hospitals NHS Foundation Trust,28/03/2023,Advertising & Staff Recruitment,Overseas Recruitment,ID Medical Group Limited,960499,"88,800.00", 
NHS,Glos Hospitals NHS Foundation Trust,28/03/2023,MSE General,Capital Project Control,Supply Chain Coordination Ltd - Capital (905),960502,"431,515.22", 
NHS,Glos Hospitals NHS Foundation Trust,28/03/2023,Contractual Clinical Services,Renal Dialysis,B Braun Avitum UK Limited,960513,"189,888.48", 
NHS,Glos Hospitals NHS Foundation Trust,28/03/2023,Contractual Clinical Services,Renal Dialysis,B Braun Avitum UK Limited,960514,"178,044.72", 
NHS,Glos Hospitals NHS Foundation Trust,28/03/2023,NHS Logistics control,Payables - Manual,Supply Chain Coordination Ltd - Consumables,960543,"107,271.16", 
NHS,Glos Hospitals NHS Foundation Trust,28/03/2023,Purchase Computers/Systems,Capital Project Control,XMA Limited,960555,"52,274.11", 
NHS,Glos Hospitals NHS Foundation Trust,28/03/2023,Purchase Computers/Systems,Capital Project Control,XMA Limited,960557,"28,483.20", 
NHS,Glos Hospitals NHS Foundation Trust,28/03/2023,Purchase Computers/Systems,Capital Project Control,InterSystems,960596,"53,857.44", 
NHS,Glos Hospitals NHS Foundation Trust,28/03/2023,Purchase Computers/Systems,Capital Project Control,BOXXE Limited,960630,"32,788.80", 
NHS,Glos Hospitals NHS Foundation Trust,28/03/2023,Pay - Agency Other,Capital Project Control,Ethical Healthcare Limited,960633,"285,000.00", 
NHS,Glos Hospitals NHS Foundation Trust,28/03/2023,Contractual Clinical Services,Renal Dialysis,B Braun Avitum UK Limited,960634,"123,795.00", 
NHS,Glos Hospitals NHS Foundation Trust,28/03/2023,Purchase Computers/Systems,Capital Project Control,XMA Limited,960751,"133,920.00", 
NHS,Glos Hospitals NHS Foundation Trust,28/03/2023,Purchase Computers/Systems,Capital Project Control,MedCurrent UK Ltd,960779,"203,092.80", 
NHS,Glos Hospitals NHS Foundation Trust,28/03/2023,Purchase Computers/Systems,Capital Project Control,XMA Limited,960782,"114,388.80", 
NHS,Glos Hospitals NHS Foundation Trust,28/03/2023,Purchase Computers/Systems,Capital Project Control,XMA Limited,960892,"224,863.85", 
NHS,Glos Hospitals NHS Foundation Trust,28/03/2023,Purchase Computers/Systems,Capital Project Control,XMA Limited,960893,"249,204.78", 
NHS,Glos Hospitals NHS Foundation Trust,30/03/2023,Amounts owed by joint ventures and Associates,GMS Debtors,NHS Gloucestershire Managed Services,961208,"5,000,000.00", 
NHS,Glos Hospitals NHS Foundation Trust,30/03/2023,Purchase Computers/Systems,Capital Project Control,Insight Direct (UK) Limited,961326,"25,760.28", 
NHS,Glos Hospitals NHS Foundation Trust,30/03/2023,Purchase Computers/Systems,Capital Project Control,Insight Direct (UK) Limited,961327,"132,340.94", 
NHS,Glos Hospitals NHS Foundation Trust,30/03/2023,Purchase Computers/Systems,Capital Project Control,Insight Direct (UK) Limited,961328,"74,580.00", 
NHS,Glos Hospitals NHS Foundation Trust,30/03/2023,Purchase Computers/Systems,Capital Project Control,Insight Direct (UK) Limited,961329,"36,648.78", 
NHS,Glos Hospitals NHS Foundation Trust,30/03/2023,Purchase Computers/Systems,Capital Project Control,Insight Direct (UK) Limited,961330,"209,046.36", 
NHS,Glos Hospitals NHS Foundation Trust,30/03/2023,Purchase Computers/Systems,Capital Project Control,Insight Direct (UK) Limited,961331,"209,046.36", 
NHS,Glos Hospitals NHS Foundation Trust,30/03/2023,Purchase Computers/Systems,Capital Project Control,Insight Direct (UK) Limited,961332,"99,600.00", 
NHS,Glos Hospitals NHS Foundation Trust,30/03/2023,Purchase Computers/Systems,Capital Project Control,Insight Direct (UK) Limited,961333,"90,479.22", 
NHS,Glos Hospitals NHS Foundation Trust,31/03/2023,External Contracts : Other,Radiology CDC,Cobalt Health,961443,"74,400.00", 
